bitfinex/quotes_ETHUSD_20250219
["timestamp","ask_amount","ask_price","bid_price","bid_amount"]
[1739971996144,3.67985,2717.5,2717.3,5.2616]
[1739971996344,0.7631,2717.4,2716.9,0.265]
[1739971996829,0.7631,2717.4,2716.9,3.94565]
[1739971997139,0.7631,2717.4,2716.9,0.265]
[1739971997443,0.7631,2717.4,2716.9,3.94565]
[1739971998460,0.7631,2717.4,2717.1,3.68037]
[1739971998608,0.7631,2717.4,2716.9,7.62624]
[1739971999454,0.7631,2717.4,2716.9,1.027624]
[1739971999612,0.7631,2717.4,2717.2,3.68019]
[1739972000752,0.7631,2717.4,2716.9,4.70475]
[1739972000959,3.68013,2717.3,2716.9,0.265]
[1739972001147,4.44311,2717.4,2716.9,0.265]
[1739972001326,8.12318,2717.4,2716.9,0.265]
[1739972001656,0.812318,2717.3,2716.9,0.265]
[1739972002474,4.44311,2717.4,2716.9,3.94564]
[1739972002658,0.7631,2717.4,2716.9,3.94564]
[1739972002969,0.7631,2717.4,2717.0,3.68046]
[1739972003174,0.7631,2717.4,2717.1,3.68036]
[1739972003334,0.7631,2717.4,2717.2,3.68025]
[1739972003535,0.7643,2717.7,2717.3,3.6801]
[1739972004373,0.1008,2717.8,2717.6,3.67971]
[1739972004669,0.1008,2717.8,2717.7,3.67958]
[1739972009643,0.1008,2717.8,2717.6,7.35936]
[1739972009828,0.1008,2717.8,2717.5,8.94138]
[1739972011075,0.1008,2717.8,2717.7,3.67958]
[1739972016481,0.7895,2717.7,2717.5,8.94143]
[1739972016668,0.7895,2717.7,2717.6,3.67971]
[1739972017081,0.1008,2717.8,2717.6,3.67971]
[1739972017799,0.1008,2717.8,2717.5,8.94139]
[1739972018100,0.1008,2717.8,2717.6,3.67969]
[1739972020070,0.1008,2717.8,2717.5,8.94141]
[1739972020384,0.1008,2717.8,2717.5,5.2616]
[1739972020581,0.1008,2717.8,2717.6,3.67965]
[1739972020827,0.1008,2717.8,2717.6,7.3593]
[1739972021605,0.1008,2717.8,2717.7,3.67958]
[1739972022899,0.1008,2717.8,2717.3,1.45510827]
[1739972023211,0.1008,2717.8,2717.5,3.67974]
[1739972023575,0.1008,2717.8,2717.6,3.67968]
[1739972025016,0.1008,2717.8,2717.3,1.45510827]
[1739972025189,0.1008,2717.8,2717.7,3.67958]
[1739972031199,0.1008,2717.8,2717.7,4.44548]
[1739972031510,0.1008,2717.8,2717.7,7.44548]
[1739972035994,0.1008,2717.8,2717.7,12.70708]
[1739972036911,0.1008,2717.8,2717.7,9.70708]
[1739972037082,0.1008,2717.8,2717.7,10.443115]
[1739972041147,0.1008,2717.8,2717.7,10.708115]
[1739972045037,0.1008,2717.8,2717.7,9.20618]
[1739972045457,0.1008,2717.8,2717.7,5.2616]
[1739972046273,0.1008,2717.8,2717.7,8.94118]
[1739972047953,0.1008,2717.8,2717.7,3.67958]
[1739972048251,0.1008,2717.8,2717.7,4.44548]
[1739972048483,0.1008,2717.8,2717.7,5.28817621]
[1739972050200,0.1008,2717.8,2717.7,4.52227621]
[1739972053882,0.1008,2717.8,2717.7,9.78387621]
[1739972054313,0.1008,2717.8,2717.7,11.09897621]
[1739972054620,0.1008,2717.8,2717.7,14.09897621]
[1739972057556,0.1008,2717.8,2717.7,14.3741452]
[1739972059260,0.8302,2718.7,2718.6,3.67836]
[1739972059956,0.757,2719.4,2718.9,3.67794]
[1739972060111,0.757,2719.3,2718.9,3.67794]
[1739972060317,0.757,2719.1,2718.7,3.67817]
[1739972060753,0.757,2719.1,2718.7,7.35632]
[1739972060979,0.757,2719.1,2718.9,3.67793]
[1739972061255,0.757,2719.1,2718.5,3.67841]
[1739972061456,4.45077,2718.9,2718.4,8.94009]
[1739972061640,0.7728,2718.8,2718.4,8.94009]
[1739972061817,0.7728,2718.8,2718.3,3.67875]
[1739972062227,4.45101,2718.8,2718.2,3.94389]
[1739972062573,0.8075,2718.7,2718.2,3.94389]
[1739972062871,0.816368,2718.7,2718.3,3.67867]
[1739972063056,0.8075,2718.8,2718.3,3.67867]
[1739972063261,0.8075,2719.0,2718.1,5.98285201]
[1739972063457,0.7531,2718.6,2718.1,8.94062]
[1739972063657,0.7531,2718.6,2718.1,5.2616]
[1739972064363,0.8076,2718.5,2718.1,5.2616]
[1739972065275,0.8076,2718.4,2718.1,5.2616]
[1739972065778,0.8076,2718.4,2718.1,3.67897]
[1739972066776,0.8076,2718.4,2717.9,0.265]
[1739972066983,0.8076,2718.4,2718.1,3.67892]
[1739972069286,0.8076,2718.4,2717.9,3.94421]
[1739972069469,0.8076,2718.4,2718.0,3.6791]
[1739972070085,0.8076,2718.4,2717.9,3.9443]
[1739972070293,0.7869,2718.2,2717.8,0.72943465]
[1739972070501,4.50005,2718.1,2717.7,0.265]
[1739972070653,0.821,2718.0,2717.7,0.265]
[1739972071354,4.50019,2718.0,2717.7,0.265]
[1739972071591,0.7589,2717.9,2717.3,3.6801]
[1739972071894,4.43823,2717.9,2717.3,3.6801]
[1739972072102,4.43823,2717.9,2717.1,8.9419]
[1739972072103,0.7589,2717.7,2717.1,8.94193]
[1739972072272,0.7589,2717.6,2717.2,3.68022]
[1739972072457,0.7589,2717.6,2717.1,3.68033]
[1739972072802,0.7589,2717.6,2717.1,3.68032]
[1739972072958,0.7589,2717.6,2717.2,3.68019]
[1739972073159,0.82,2717.5,2717.1,3.68032]
[1739972073362,0.82,2717.5,2717.1,7.36064]
[1739972073682,0.82,2717.5,2717.2,3.68024]
[1739972074191,0.82,2717.5,2717.2,3.68025]
[1739972074582,0.82,2717.5,2717.1,3.68032]
[1739972074771,0.82,2717.5,2717.3,3.68011]
[1739972075910,0.82,2717.5,2717.3,3.68005]
[1739972076970,0.82,2717.5,2717.4,3.67998]
[1739972077779,0.82,2717.5,2717.2,3.68025]
[1739972077984,0.82,2717.5,2717.3,3.68009]
[1739972078269,0.82,2717.5,2717.4,3.67998]
[1739972078794,3.67914,2718.1,2717.4,3.67998]
[1739972078795,0.7564,2718.1,2717.8,3.67942]
[1739972079169,0.7564,2718.1,2717.9,3.6792]
[1739972079569,0.7564,2718.1,2718.0,3.67917]
[1739972079815,0.7564,2718.1,2717.7,0.7659]
[1739972080119,0.7564,2718.1,2717.9,7.35848]
[1739972081212,0.7564,2718.1,2717.9,3.67924]
[1739972082115,0.7564,2718.1,2717.6,5.98912346]
[1739972082287,8.38,2718.8,2717.6,5.2616]
[1739972082288,0.7522,2718.0,2717.6,5.2616]
[1739972082488,0.7522,2717.9,2717.6,5.2616]
[1739972082812,1.195339,2717.9,2717.6,5.2616]
[1739972083015,0.8293,2717.8,2717.6,5.2616]
[1739972083681,0.8293,2717.8,2717.4,3.94491]
[1739972083912,0.8293,2717.8,2717.6,3.6797]
[1739972084977,0.8293,2717.8,2717.6,3.67965]
[1739972086050,0.8293,2717.8,2717.5,3.67985]
[1739972086815,0.8293,2717.8,2717.6,3.67965]
[1739972088014,0.8293,2717.8,2717.5,3.67982]
[1739972088410,0.8293,2717.8,2717.5,3.67985]
[1739972089340,0.8293,2717.8,2717.6,3.6797]
[1739972094746,0.8293,2717.8,2717.6,7.35933]
[1739972094928,0.8293,2717.8,2717.6,3.67963]
[1739972095560,0.8293,2717.8,2717.6,7.35927]
[1739972095842,0.8293,2717.8,2717.6,3.67963]
[1739972096050,0.8293,2717.8,2717.6,7.35928]
[1739972096773,0.8293,2717.8,2717.6,3.67963]
[1739972097365,0.8293,2717.8,2717.7,3.67958]
[1739972099575,0.8045,2718.3,2717.7,4.415501]
[1739972099748,0.8045,2718.3,2717.4,3.94498]
[1739972099749,0.8045,2718.3,2718.0,3.6791]
[1739972100469,0.8045,2718.3,2717.9,3.67927]
[1739972100773,0.8045,2718.3,2717.8,3.67935]
[1739972100980,0.8045,2718.3,2717.9,3.67927]
[1739972101695,0.8045,2718.3,2717.6,5.2616]
[1739972101855,3.0,2718.8,2717.6,8.94121]
[1739972101856,0.7593,2718.1,2717.6,8.94121]
[1739972102175,0.7593,2718.1,2717.6,5.2616]
[1739972102384,0.7593,2718.1,2717.7,3.67958]
[1739972102567,0.7593,2718.1,2717.6,5.2616]
[1739972102886,4.43834,2718.1,2717.6,5.2616]
[1739972103180,0.7593,2718.1,2717.6,5.2616]
[1739972103477,0.7593,2718.1,2717.6,8.94125]
[1739972103707,0.7593,2718.1,2717.7,3.67956]
[1739972104707,0.7593,2718.1,2717.6,5.2616]
[1739972105106,4.4384,2718.1,2717.6,5.2616]
[1739972105281,0.7593,2718.1,2717.6,8.94131]
[1739972105797,0.7593,2718.1,2717.6,5.2616]
[1739972105993,0.7593,2718.1,2717.7,3.67956]
[1739972106202,0.7593,2718.1,2717.6,8.9413]
[1739972107343,0.7593,2718.1,2717.6,3.6797]
[1739972107479,0.7593,2718.1,2717.7,7.35898]
[1739972107676,0.7593,2718.1,2717.7,4.44537]
[1739972109413,0.7593,2718.1,2717.6,3.67965]
[1739972109615,0.7593,2718.1,2717.5,4.44567]
[1739972109818,0.7593,2718.1,2717.7,3.67957]
[1739972110515,0.7593,2718.1,2717.6,4.22562546]
[1739972110677,0.7593,2718.1,2717.7,3.67952]
[1739972111092,0.7593,2718.1,2718.0,3.67917]
[1739972111339,0.7577,2718.6,2718.3,3.67874]
[1739972111540,0.7577,2718.6,2717.8,0.55]
[1739972111541,0.7577,2718.6,2718.1,4.44484]
[1739972111769,0.7577,2718.6,2717.9,3.67926]
[1739972112366,0.7577,2718.6,2718.1,3.67901]
[1739972113034,0.7577,2718.6,2718.1,3.67896]
[1739972113237,0.7577,2718.6,2718.2,3.71559492]
[1739972113446,0.7577,2718.6,2718.3,3.67875]
[1739972113826,0.7577,2718.6,2718.4,3.67856]
[1739972114669,0.7577,2718.6,2718.4,3.67853]
[1739972115678,0.7787,2719.1,2718.5,3.67849]
[1739972116479,4.45642,2719.1,2718.5,3.67849]
[1739972117996,0.7787,2719.1,2718.5,0.48849991]
[1739972118167,0.7787,2719.1,2718.7,3.67814]
[1739972119252,0.7787,2719.1,2718.6,0.7659]
[1739972119449,3.67669,2719.9,2718.9,3.6779]
[1739972119654,0.7917,2719.6,2719.0,3.67782]
[1739972119895,0.7917,2719.6,2719.1,3.71443448]
[1739972120205,0.7917,2719.6,2719.1,7.35522]
[1739972120369,0.7917,2719.6,2719.2,3.67748]
[1739972120694,0.7917,2719.6,2719.3,3.67741]
[1739972121155,0.7917,2719.6,2719.4,3.67728]
[1739972121680,0.8116,2719.9,2719.5,3.67712]
[1739972121886,0.8116,2719.9,2719.5,3.67714]
[1739972122085,0.8116,2719.9,2719.4,0.77223903]
[1739972122255,3.94664983,2720.3,2719.6,3.67688]
[1739972122256,0.7904,2720.3,2719.6,3.67688]
[1739972122463,3.67626,2720.2,2719.5,0.7541]
[1739972122669,4.46652,2720.3,2719.5,0.7541]
[1739972122868,3.67626,2720.2,2719.5,0.7541]
[1739972123063,3.67626,2720.2,2719.6,0.443131]
[1739972123768,0.7904,2720.3,2719.6,0.443131]
[1739972123969,4.46648,2720.3,2719.6,4.120111]
[1739972124507,0.7904,2720.3,2719.6,4.120111]
[1739972125313,0.7904,2720.3,2719.6,4.120051]
[1739972125472,0.7904,2720.3,2719.7,0.4874151]
[1739972125868,4.46648,2720.3,2719.7,0.4874151]
[1739972126181,3.67627,2720.2,2719.7,0.4874151]
[1739972126382,3.67627,2720.2,2719.5,0.7541]
[1739972126613,3.67627,2720.2,2719.5,4.43124]
[1739972126969,3.67635,2720.1,2719.5,0.7541]
[1739972127171,0.7902,2720.0,2719.5,0.265]
[1739972128373,0.7902,2720.0,2719.6,0.03676639]
[1739972128574,0.7902,2720.0,2719.7,0.39788764]
[1739972130196,0.784,2720.2,2719.7,4.07475764]
[1739972130429,3.67593,2720.4,2719.8,3.67668]
[1739972130593,0.784,2720.6,2720.0,4.44236]
[1739972130791,0.784,2720.6,2720.1,0.811895]
[1739972131252,3.67582,2720.5,2720.1,0.811895]
[1739972131422,0.784,2720.6,2720.0,0.7659]
[1739972131592,0.784,2720.6,2720.0,4.44229]
[1739972131789,3.67579,2720.5,2720.0,0.7659]
[1739972132092,0.784,2720.6,2720.0,4.44235]
[1739972132289,4.45967,2720.6,2720.0,4.44235]
[1739972132505,3.93244486,2721.1,2720.0,4.44235]
[1739972132506,3.67533,2720.9,2720.2,3.67618]
[1739972132703,3.67545,2720.8,2720.2,3.67618]
[1739972132934,7.35091,2720.8,2720.2,3.67618]
[1739972133240,3.67561,2720.7,2720.1,0.811894]
[1739972133607,3.67561,2720.7,2720.1,4.488204]
[1739972133797,3.67561,2720.7,2720.2,0.5254104]
[1739972134415,0.7805,2721.1,2720.4,0.7659]
[1739972134601,0.7805,2721.1,2720.6,3.67559]
[1739972134804,0.7805,2721.1,2720.7,0.03675106]
[1739972135218,0.7805,2721.1,2720.6,3.67554]
[1739972135415,0.7805,2721.1,2720.7,0.367554]
[1739972135617,4.46656,2721.3,2720.7,0.367554]
[1739972136145,4.46656,2721.3,2720.7,4.043064]
[1739972136303,4.6288084,2721.5,2720.8,4.44128]
[1739972136505,3.67461,2721.4,2720.8,4.44128]
[1739972136900,3.67465,2721.4,2720.8,4.44121]
[1739972137137,7.34931,2721.4,2720.8,4.44121]
[1739972138137,3.67472,2721.3,2720.8,4.44121]
[1739972138437,0.9542784,2721.5,2720.8,4.44121]
[1739972138817,4.6288284,2721.5,2720.8,4.44118]
[1739972139142,3.67464,2721.4,2720.8,0.7659]
[1739972139343,3.67484,2721.3,2720.8,0.7659]
[1739972139711,4.6288484,2721.5,2720.8,0.7659]
[1739972139901,3.67482,2721.3,2720.8,0.7659]
[1739972140097,3.67482,2721.3,2720.8,1.2468034]
[1739972140303,4.6287984,2721.5,2720.8,1.2468034]
[1739972140502,4.6287984,2721.5,2720.9,3.67524]
[1739972140945,3.6746,2721.4,2720.8,4.44115]
[1739972141358,3.6746,2721.4,2720.8,8.11647]
[1739972141562,4.6287984,2721.5,2720.9,3.67524]
[1739972141759,0.1482784,2721.5,2721.0,4.44094]
[1739972141961,0.1482784,2721.5,2721.1,0.709094]
[1739972142167,0.1482784,2721.5,2721.1,0.265]
[1739972142780,3.8227284,2721.5,2721.1,0.265]
[1739972143964,0.1482784,2721.5,2721.1,0.265]
[1739972144174,0.1482784,2721.5,2721.1,3.93991]
[1739972144381,0.1482784,2721.5,2721.2,3.67476]
[1739972144684,0.1482784,2721.5,2721.3,0.761462]
[1739972145243,0.1482784,2721.5,2721.4,0.7573]
[1739972146189,0.1482784,2721.5,2721.4,4.46860906]
[1739972146398,0.1482784,2721.5,2721.4,4.43187]
[1739972147870,0.1482784,2721.5,2721.4,5.17310438]
[1739972148071,0.1482784,2721.5,2721.4,5.88660106]
[1739972149019,0.1482784,2721.5,2721.4,11.14820106]
[1739972150181,0.1482784,2721.5,2721.4,11.69820106]
[1739972151184,0.1482784,2721.5,2721.4,8.02363106]
[1739972151593,0.1482784,2721.5,2721.4,7.73763106]
[1739972151793,0.1482784,2721.5,2721.4,5.97509668]
[1739972153295,0.1482784,2721.5,2721.4,9.64966668]
[1739972153694,0.1482784,2721.5,2721.4,10.41556668]
[1739972155534,0.1482784,2721.5,2721.4,10.96556668]
[1739972157559,3.67309,2722.5,2721.4,22.77556668]
[1739972157856,0.7861,2722.5,2722.0,3.67368]
[1739972158060,0.7861,2722.5,2722.1,3.93858]
[1739972158958,0.7861,2722.5,2722.2,3.67343]
[1739972159159,0.8118,2722.9,2722.3,0.7659]
[1739972159458,3.67268,2722.8,2722.4,0.443933]
[1739972159641,3.67268,2722.8,2722.1,1.0309]
[1739972159642,3.67277,2722.8,2722.1,1.0309]
[1739972160046,3.67277,2722.8,2722.1,4.70447]
[1739972160253,3.67325,2722.4,2722.1,0.7659]
[1739972160446,3.67325,2722.4,2722.0,5.2616]
[1739972160447,3.67345,2722.3,2722.0,5.2616]
[1739972160657,3.67339,2722.3,2722.0,5.5266]
[1739972160965,0.779,2722.4,2722.0,5.5266]
[1739972161170,0.779,2722.4,2722.0,9.82961]
[1739972161663,0.779,2722.4,2722.0,5.5266]
[1739972162064,0.8239,2722.8,2722.1,0.03673203]
[1739972162228,3.67283,2722.7,2722.1,3.71026203]
[1739972162550,4.49671,2722.8,2722.0,5.5266]
[1739972162752,3.67304,2722.6,2722.0,5.5266]
[1739972163064,3.67288,2722.7,2722.1,0.920041]
[1739972163427,3.67295,2722.6,2722.1,0.920041]
[1739972163973,4.43476,2722.2,2722.0,5.2616]
[1739972164362,0.7612,2722.2,2722.0,5.2616]
[1739972164747,4.43476,2722.2,2722.0,5.2616]
[1739972164943,0.7612,2722.2,2722.0,5.2616]
[1739972166663,4.43481,2722.2,2722.0,5.2616]
[1739972166851,0.7612,2722.2,2721.7,5.2616]
[1739972167180,0.7612,2722.2,2721.8,3.67398]
[1739972167657,0.7612,2722.2,2721.9,0.03673476]
[1739972168177,0.7865,2722.4,2721.9,3.71063476]
[1739972169477,4.45974,2722.4,2721.9,3.71063476]
[1739972169681,3.67344,2722.3,2721.7,8.93568]
[1739972169879,4.45974,2722.4,2721.7,5.2616]
[1739972169880,3.6735,2722.2,2721.7,5.2616]
[1739972170054,3.67337,2722.3,2721.8,3.93903]
[1739972170250,0.7865,2722.4,2721.9,3.7105747]
[1739972170452,0.7865,2722.4,2722.1,3.67362]
[1739972170658,0.7759,2722.6,2722.2,3.67346]
[1739972171054,0.7759,2722.6,2722.2,3.67349]
[1739972171254,5.38,2722.9,2722.3,3.6733]
[1739972171489,5.38,2722.9,2722.4,3.70986768]
[1739972171797,4.50448,2723.0,2722.5,3.67309]
[1739972172299,0.832,2723.0,2722.5,3.67309]
[1739972172504,0.832,2723.0,2722.6,1.133209]
[1739972173104,0.7876,2723.2,2722.7,3.67281]
[1739972173306,0.7876,2723.2,2722.8,3.67266]
[1739972173489,0.7745,2723.7,2723.1,0.7659]
[1739972173691,4.44598,2723.7,2723.1,0.7659]
[1739972173867,0.7745,2723.7,2723.1,4.881884]
[1739972174084,3.67133,2723.9,2723.1,4.881884]
[1739972174281,0.7745,2724.0,2723.1,10.143484]
[1739972174503,3.67132,2723.9,2723.1,10.143484]
[1739972174903,4.44569,2724.0,2723.2,3.67203]
[1739972175117,8.11684,2724.0,2723.3,4.33580568]
[1739972175323,0.7745,2724.0,2723.4,3.93786]
[1739972175503,0.7745,2724.0,2723.4,0.266]
[1739972176190,3.6712,2723.9,2723.4,0.2511]
[1739972176408,7.34249,2723.9,2723.4,0.2511]
[1739972176717,3.67148,2723.7,2723.4,0.70980657]
[1739972176901,7.34251,2723.9,2723.4,0.2511]
[1739972177102,7.34248,2723.9,2723.4,0.2511]
[1739972177420,3.67143,2723.8,2723.4,0.2511]
[1739972177820,4.44559,2724.0,2723.4,0.2511]
[1739972178124,3.67129,2723.9,2723.4,0.2511]
[1739972178291,3.67134,2723.8,2723.4,0.71636984]
[1739972178499,4.4456,2724.0,2723.4,4.38822984]
[1739972178692,0.7745,2724.0,2723.5,0.7659]
[1739972178896,0.1482784,2724.2,2723.7,0.7659]
[1739972179338,3.67095,2724.1,2723.7,0.7659]
[1739972179542,3.67108,2724.0,2723.8,0.266]
[1739972179699,3.6712,2723.9,2723.6,0.266]
[1739972180244,3.6712,2723.9,2723.6,0.2561]
[1739972180438,3.8191984,2724.2,2723.6,0.2561]
[1739972180636,0.1482784,2724.2,2723.6,0.2561]
[1739972180934,0.812,2724.1,2723.5,0.7659]
[1739972181148,3.67113,2724.0,2723.5,1.0319]
[1739972181356,3.67122,2723.9,2723.5,1.0319]
[1739972181517,3.67134,2723.8,2723.5,1.0319]
[1739972181922,3.67171,2723.6,2723.4,5.2616]
[1739972182145,4.46737,2723.6,2723.1,5.2616]
[1739972182454,3.67194,2723.4,2723.1,5.2616]
[1739972183653,3.67166,2723.6,2723.1,5.2616]
[1739972183654,0.7641,2723.6,2723.1,5.99710024]
[1739972184005,4.45883,2724.1,2723.3,3.67193]
[1739972184311,4.45886,2724.1,2723.3,3.67201]
[1739972184633,4.45886,2724.1,2723.2,0.7659]
[1739972184851,0.7879,2724.1,2723.5,3.67173]
[1739972185051,4.45883,2724.1,2723.5,3.67173]
[1739972185206,3.67108,2724.0,2723.5,3.67173]
[1739972185402,0.7879,2724.1,2723.7,4.43725]
[1739972185622,0.1482784,2724.2,2723.8,3.67127]
[1739972186317,0.1482784,2724.2,2723.7,1.0329]
[1739972186975,3.8191384,2724.2,2723.7,1.0329]
[1739972187170,3.67094,2724.1,2723.7,1.0329]
[1739972187374,3.67094,2724.1,2723.7,0.267]
[1739972187572,0.1482784,2724.2,2723.7,0.267]
[1739972187573,3.8190984,2724.2,2723.7,0.267]
[1739972187768,0.1482784,2724.2,2723.7,0.267]
[1739972188200,3.8190984,2724.2,2723.7,0.267]
[1739972188360,0.1482784,2724.2,2723.7,0.6671365]
[1739972188906,0.1482784,2724.2,2723.9,3.67119]
[1739972189064,0.1482784,2724.2,2723.9,4.43709]
[1739972189265,0.1482784,2724.2,2724.0,3.67106]
[1739972190117,0.1482784,2724.2,2723.9,4.4371]
[1739972190334,0.1482784,2724.2,2723.9,1.64344965]
[1739972190484,0.1482784,2724.2,2724.0,3.67105]
[1739972190981,0.1482784,2724.2,2724.0,3.67099]
[1739972191178,0.1482784,2724.2,2724.0,7.34197]
[1739972191384,0.1482784,2724.2,2724.0,3.671]
[1739972191822,0.1482784,2724.2,2724.1,3.67093]
[1739972192933,0.1482784,2724.2,2724.0,0.53144497]
[1739972193233,0.1482784,2724.2,2723.9,0.7659]
[1739972193417,0.1482784,2724.2,2724.0,3.67101]
[1739972193621,0.1482784,2724.2,2724.0,3.67099]
[1739972193792,0.1482784,2724.2,2723.9,0.7659]
[1739972193992,0.1482784,2724.2,2724.1,3.67093]
[1739972194611,0.1482784,2724.2,2724.1,4.481709]
[1739972195331,0.1482784,2724.2,2724.0,3.67101]
[1739972195708,0.1482784,2724.2,2724.1,3.67093]
[1739972196131,0.1482784,2724.2,2724.0,3.67096]
[1739972196330,0.1482784,2724.2,2724.1,3.67093]
[1739972197837,0.1482784,2724.2,2724.1,3.70763389]
[1739972198034,0.1482784,2724.2,2724.1,4.51119939]
[1739972199438,0.1482784,2724.2,2724.1,8.31380006]
[1739972199743,0.1482784,2724.2,2724.1,8.27709939]
[1739972200046,0.7966,2726.0,2725.1,0.7659]
[1739972200199,3.66867,2725.8,2725.2,0.267]
[1739972200400,3.66895,2725.6,2725.2,0.267]
[1739972200709,3.66932,2725.3,2724.7,0.7659]
[1739972201040,0.7966,2725.7,2724.9,3.66978]
[1739972201257,0.7966,2725.7,2725.1,3.66956]
[1739972201460,3.66899,2725.6,2725.0,0.366978]
[1739972201601,7.33799,2725.6,2724.9,3.66984]
[1739972201804,7.33799,2725.6,2724.7,4.421]
[1739972201805,3.66899,2725.6,2724.7,4.421]
[1739972202097,0.7776,2725.3,2724.7,0.751]
[1739972202302,4.44694,2725.3,2724.7,0.751]
[1739972202541,4.44694,2725.3,2724.4,3.6704]
[1739972202728,0.444694,2725.2,2724.5,0.268]
[1739972203036,3.66973,2725.0,2724.5,0.268]
[1739972203422,3.66991,2724.9,2724.5,0.268]
[1739972203740,0.786,2724.8,2724.5,0.268]
[1739972203946,4.45606,2724.8,2724.5,0.268]
[1739972204143,1.598597,2724.8,2724.5,0.268]
[1739972204313,0.786,2724.8,2724.5,0.268]
[1739972204713,0.786,2724.8,2724.3,3.67065]
[1739972204920,0.7557,2725.1,2724.5,3.67039]
[1739972205447,0.7557,2725.1,2724.6,3.67019]
[1739972205826,4.42532,2725.1,2724.5,0.751]
[1739972206028,3.66915,2725.5,2724.7,4.42104]
[1739972206228,0.7726,2725.4,2724.8,3.97457518]
[1739972206473,3.66941,2725.3,2724.8,0.268]
[1739972206673,0.7725,2725.2,2724.1,0.751]
[1739972206882,0.7725,2725.1,2724.2,0.269]
[1739972207029,0.7725,2724.6,2724.2,0.269]
[1739972207227,4.44277,2724.6,2724.1,0.751]
[1739972207533,0.7725,2724.6,2724.1,0.751]
[1739972208436,3.67039,2724.5,2723.9,6.00341128]
[1739972208636,1.16677,2724.6,2724.0,3.67106]
[1739972208832,1.16677,2724.6,2724.1,3.67085]
[1739972209281,3.66987,2724.9,2724.4,0.7625]
[1739972209450,3.66987,2724.9,2724.3,3.67065]
[1739972210979,3.66967,2725.1,2724.4,0.03670074]
[1739972211180,4.480513,2725.3,2724.5,3.67037]
[1739972211379,4.1175013,2725.2,2724.5,3.67037]
[1739972211565,4.1175013,2725.2,2724.6,3.67018]
[1739972211863,0.7785,2725.1,2724.7,3.67012]
[1739972212062,0.7785,2725.1,2724.5,3.6703]
[1739972212063,0.7785,2725.1,2724.6,3.67017]
[1739972212549,0.7785,2725.1,2724.7,3.67004]
[1739972214491,0.7785,2725.1,2724.8,3.66995]
[1739972214639,0.7987,2725.3,2724.8,0.73766885]
[1739972214836,3.66874,2725.8,2725.2,3.66939]
[1739972215137,3.66874,2725.8,2725.2,0.801]
[1739972215138,3.66894,2725.6,2725.2,0.801]
[1739972215371,3.66874,2725.8,2725.1,3.66952]
[1739972215542,3.6688,2725.7,2725.1,3.66952]
[1739972216085,0.7987,2725.4,2724.8,3.801]
[1739972216254,3.66933,2725.3,2724.8,3.801]
[1739972216979,0.7987,2725.4,2724.8,3.801]
[1739972217188,0.7987,2725.4,2724.9,7.33957]
[1739972217389,0.7987,2725.4,2725.0,3.66966]
[1739972217554,0.7987,2725.4,2724.9,3.66974]
[1739972217882,0.7987,2725.4,2725.0,3.66971]
[1739972218586,0.7987,2725.4,2724.9,3.66974]
[1739972218886,0.7987,2725.4,2725.0,3.66964]
[1739972220371,0.7637,2725.6,2724.8,5.218004]
[1739972220578,3.66906,2725.5,2724.8,0.801]
[1739972220756,3.66906,2725.5,2724.9,3.66975]
[1739972221086,3.66906,2725.5,2724.8,4.47086]
[1739972221245,0.7637,2725.6,2725.1,3.66952]
[1739972221445,0.7637,2725.6,2725.0,3.66966]
[1739972221769,0.7637,2725.6,2725.1,3.66947]
[1739972221952,0.815,2725.2,2724.7,3.6701]
[1739972222152,0.815,2725.2,2724.8,0.268]
[1739972222781,0.815,2725.2,2724.8,3.93788]
[1739972223080,0.815,2725.2,2724.9,3.66977]
[1739972223587,4.48445,2725.2,2724.8,0.268]
[1739972223913,4.43209,2725.0,2724.6,5.2616]
[1739972224481,0.7623,2725.0,2724.3,0.268]
[1739972224693,3.66993,2724.9,2724.3,0.268]
[1739972224841,0.8021,2724.6,2724.0,3.67105]
[1739972225048,4.919611,2724.6,2723.9,3.6712]
[1739972225552,0.8021,2724.6,2724.0,3.67096]
[1739972225758,0.8021,2724.6,2724.1,3.67082]
[1739972226158,3.67041,2724.5,2723.9,6.67112]
[1739972226851,3.67069,2724.3,2723.7,0.801]
[1739972227086,0.7663,2724.2,2723.7,3.94046]
[1739972227241,0.7663,2724.2,2723.7,0.269]
[1739972227937,0.7663,2724.2,2723.7,3.94043]
[1739972228169,0.7663,2724.2,2723.7,3.94038]
[1739972228371,0.7663,2724.2,2723.7,0.269]
[1739972228801,4.43711,2724.2,2723.7,0.269]
[1739972229163,4.43711,2724.2,2723.6,5.98021923]
[1739972229365,4.43711,2724.2,2723.6,9.92081923]
[1739972229565,1.210011,2724.2,2723.5,0.269]
[1739972229747,4.880921,2724.2,2723.5,0.269]
[1739972229942,4.880921,2724.2,2723.5,3.94069]
[1739972230396,3.67095,2724.1,2723.5,0.269]
[1739972230577,1.210011,2724.2,2723.7,3.67146]
[1739972230896,1.210011,2724.2,2723.7,7.34285]
[1739972231194,1.210011,2724.2,2723.7,3.6714]
[1739972231345,1.210011,2724.2,2723.6,3.67159]
[1739972231544,1.210011,2724.2,2723.6,3.67161]
[1739972232379,1.210011,2724.2,2723.7,3.67146]
[1739972232990,4.880891,2724.2,2723.6,3.67148]
[1739972233176,3.67115,2724.0,2723.2,0.75384388]
[1739972233491,4.4325,2724.1,2723.4,3.67178]
[1739972233650,4.4325,2724.1,2723.4,7.34356]